[Event "IIFL Wealth  4th Mumbai Junior U-13"]
[Site "Mumbai"]
[Date "2019.01.05"]
[Round "7"]
[White "Sureka Akshat"]
[Black "Mitank Maru"]
[Result "0-1"]
[ECO "A10"]
[WhiteElo "1078"]
[BlackElo "1312"]
[Annotator "NA RC"]
[PlyCount "80"]
[EventDate "2018.12.30"]
[EventType "swiss"]
[EventCountry "IND"]
[SourceTitle "playchess.com"]
[Source "ChessBase"]
[SourceQuality "1"]
[TimeControl "40/5400+30:1800+30"]

1. c4 {[%emt 0:01:53]} f5 {[%emt 0:00:00]} 2. g3 {[%emt 0:00:32]} e6 {[%emt 0:00:45]} 3. Bg2 {[%emt 0:01:20]} Nf6 {[%emt 0:00:53]} 4. Nf3 {[%emt 0:00:38]} Be7 {[%emt 0:00:15]} 5. O-O {[%emt 0:01:28]} O-O {[%emt 0:00:25]} 6. b3 {[%emt 0:02:28]} d5 {[%emt 0:02:03]} 7. Bb2 {[%emt 0:02:15]} c6 {[%emt 0:02:24]} 8. d3 {[%emt 0:07:08]} Qe8 {[%emt 0:04:08]} 9. Nbd2 {[%emt 0:04:40]} Qh5 {[%emt 0:02:32]} 10. e4 {[%emt 0:01:43]} Rd8 {[%emt 0:12:20]} 11. Ne5 {[%emt 0:06:50]} dxe4 {[%emt 0:08:31]} 12. dxe4 {[%emt 0:00:43]} Qh6 {[%emt 0:04:41]} 13. f4 {[%emt 0:02:31]} Bb4 {[%emt 0:02:33]} 14. Bc1 {[%emt 0:01:32]} Bc3 {[%emt 0:01:14]} 15. Rb1 {[%emt 0:01:18]} Bxe5 {[%emt 0:01:05]} 16. fxe5 {[%emt 0:01:06]} Ng4 {[%emt 0:04:29]} 17. h3 {[%emt 0:04:35]} Qe3+ {[%emt 0:03:53]} 18. Kh1 {[%emt 0:03:33]} Nf2+ {[%emt 0:01:20]} 19. Rxf2 {[%emt 0:00:11]} Qxf2 {[%emt 0:00:18]} 20. exf5 {[%emt 0:11:20]} Qxf5 {[%emt 0:01:23]} 21. Qe2 {[%emt 0:04:25]} Nd7 {[%emt 0:01:56]} 22. Bb2 {[%emt 0:04:51]} Nc5 {[%emt 0:03:33]} 23. Ne4 {[%emt 0:04:20]} Nxe4 {[%emt 0:01:02]} 24. Qxe4 {[%emt 0:00:41]} Qxe4 {[%emt 0:05:38]} 25. Bxe4 {[%emt 0:01:35]} Rd2 {[%emt 0:00:33]} 26. Ba3 {[%emt 0:03:20]} Re2 {[%emt 0:01:02]} 27. Rf1 {[%emt 0:01:43]} Bd7 {[%emt 0:00:10]} 28. Bb1 {[%emt 0:00:28]} c5 {[%emt 0:01:41]} 29. Kg1 {[%emt 0:01:45]} Bc6 {[%emt 0:01:08]} 30. Rf2 {[%emt 0:01:20]} Re1+ {[%emt 0:01:10]} 31. Rf1 {[%emt 0:00:43]} Rxe5 {[%emt 0:02:24]} 32. Bc1 {[%emt 0:01:52]} Rd8 {[%emt 0:00:52]} 33. Bc2 {[%emt 0:01:55]} Re2 {[%emt 0:03:24]} 34. Rf2 {[%emt 0:00:16]} Rxf2 {[%emt 0:01:13]} 35. Kxf2 {[%emt 0:00:11]} Rf8+ {[%emt 0:00:06]} 36. Kg1 {[%emt 0:00:32]} Rf3 {[%emt 0:00:17]} 37. Bf4 {[%emt 0:00:50]} g5 {[%emt 0:00:09]} 38. Be5 {[%emt 0:00:48]} Re3 {[%emt 0:00:31]} 39. Bc7 {[%emt 0:00:27]} Rc3 {[%emt 0:00:10]} 40. Bd1 {[%emt 0:00:00]} Rc1 {[%emt 0:00:00]} 0-1

[Event "IIFL Wealth  4th Mumbai Junior U-13"]
[Site "Mumbai"]
[Date "2019.01.05"]
[Round "7"]
[White "Sri Rashmika M"]
[Black "Wahba, David George"]
[Result "1-0"]
[ECO "D10"]
[WhiteElo "1039"]
[BlackElo "1295"]
[Annotator "NA RC"]
[PlyCount "73"]
[EventDate "2018.12.30"]
[EventType "swiss"]
[EventCountry "IND"]
[SourceTitle "playchess.com"]
[Source "ChessBase"]
[SourceQuality "1"]
[TimeControl "40/5400+30:1800+30"]

1. d4 {[%emt 0:00:00]} d5 {[%emt 0:00:52]} 2. c4 {[%emt 0:00:00]} c6 {[%emt 0:02:59]} 3. Nc3 {[%emt 0:00:01]} Nf6 {[%emt 0:01:05]} 4. Bg5 {[%emt 0:00:16]} Bf5 {[%emt 0:03:19]} 5. e3 {[%emt 0:01:35]} e6 {[%emt 0:02:01]} 6. Nf3 {[%emt 0:03:37]} Bd6 {[%emt 0:03:08]} 7. cxd5 {[%emt 0:02:08]} cxd5 {[%emt 0:00:56]} 8. Bd3 {[%emt 0:01:57]} Bxd3 9. Qxd3 {[%emt 0:00:03]} h6 {[%emt 0:01:22]} 10. Bh4 {[%emt 0:03:00]} O-O {[%emt 0:01:55]} 11. O-O {[%emt 0:00:44]} Nbd7 {[%emt 0:00:03]} 12. Rac1 {[%emt 0:06:15]} Rc8 {[%emt 0:02:19]} 13. Rfd1 {[%emt 0:07:20]} a6 {[%emt 0:08:03]} 14. e4 {[%emt 0:05:07]} dxe4 {[%emt 0:03:41]} 15. Nxe4 {[%emt 0:00:08]} Rxc1 {[%emt 0:01:09]} 16. Rxc1 {[%emt 0:00:19]} Be7 {[%emt 0:00:20]} 17. h3 {[%emt 0:04:42]} Nxe4 {[%emt 0:01:51]} 18. Qxe4 {[%emt 0:00:49]} Kh8 {[%emt 0:01:00]} 19. Bxe7 {[%emt 0:02:08]} Qxe7 {[%emt 0:17:42]} 20. Qxb7 {[%emt 0:00:30]} Qd6 {[%emt 0:00:07]} 21. Rc8 Rxc8 {[%emt 0:00:34]} 22. Qxc8+ {[%emt 0:06:33]} Kh7 {[%emt 0:00:09]} 23. Qc4 {[%emt 0:07:07]} Qf4 {[%emt 0:00:54]} 24. b4 {[%emt 0:04:15]} f6 {[%emt 0:01:28]} 25. Qxe6 {[%emt 0:06:59]} Qc1+ 26. Qe1 {[%emt 0:00:15]} Qxe1+ {[%emt 0:00:53]} 27. Nxe1 {[%emt 0:00:03]} Kg6 {[%emt 0:00:08]} 28. Kf1 {[%emt 0:00:24]} Kf5 {[%emt 0:00:07]} 29. Nd3 {[%emt 0:02:02]} Ke4 {[%emt 0:00:28]} 30. Nc5+ {[%emt 0:00:08]} Nxc5 {[%emt 0:00:00]} 31. dxc5 {[%emt 0:00:00]} Kd5 {[%emt 0:00:01]} 32. Ke2 a5 {[%emt 0:00:11]} 33. a3 {[%emt 0:00:00]} g5 {[%emt 0:00:30]} 34. g4 {[%emt 0:00:00]} a4 {[%emt 0:02:27]} 35. f3 Kc6 36. Ke3 Kb5 37. Ke4 1-0

[Event "IIFL Wealth  4th Mumbai Junior U-13"]
[Site "Mumbai"]
[Date "2019.01.05"]
[Round "7"]
[White "Kapadia Prisha"]
[Black "Jain, Kushagra"]
[Result "0-1"]
[ECO "A41"]
[WhiteElo "1037"]
[BlackElo "1323"]
[Annotator "NA RC"]
[PlyCount "120"]
[EventDate "2018.12.30"]
[EventType "swiss"]
[EventCountry "IND"]
[SourceTitle "playchess.com"]
[Source "ChessBase"]
[SourceQuality "1"]
[TimeControl "40/5400+30:1800+30"]

1. d4 d6 2. Nf3 g6 3. g3 Bg7 4. Bg2 Nf6 5. O-O O-O 6. b3 Nc6 7. Bb2 Bg4 8. Nbd2 Qd7 9. c4 Bh3 10. e3 Bxg2 11. Kxg2 Nh5 12. Qe2 e5 13. dxe5 dxe5 14. Rfd1 Rad8 15. a3 f5 16. Nf1 Qe7 17. Rxd8 Nxd8 18. N1d2 e4 19. Nd4 c5 20. Nxf5 gxf5 21. Qxh5 Bxb2 22. Ra2 Bg7 23. Qe2 Ne6 24. h4 Rd8 25. Rc2 Qd7 26. Nb1 Qd3 27. Qxd3 Rxd3 28. b4 Rb3 29. Rc1 cxb4 30. axb4 Rxb4 31. Nd2 Nc5 32. Rc2 Rb2 33. Rxb2 Bxb2 34. f3 a5 35. g4 exf3+ 36. Kxf3 fxg4+ 37. Kxg4 a4 38. Nb1 Ne4 39. Kf4 Nc3 40. Nxc3 Bxc3 41. Ke4 a3 42. Kd3 a2 43. Kxc3 a1=Q+ 44. Kd3 Qb2 45. Ke4 Qd2 46. c5 Kf7 47. h5 Ke6 48. h6 Qd5+ 49. Kf4 Qf5+ 50. Kg3 Qe4 51. Kf2 Kf5 52. Ke2 Qc2+ 53. Kf3 Qd1+ 54. Kg3 Qg4+ 55. Kf2 Ke4 56. c6 bxc6 57. Ke1 Kxe3 58. Kf1 Qe2+ 59. Kg1 Kf3 60. Kh1 Qg2# 0-1

[Event "IIFL Wealth  4th Mumbai Junior U-13"]
[Site "Mumbai"]
[Date "2019.01.05"]
[Round "7"]
[White "Vittanala Shanmuk Saish"]
[Black "Medhansh Rathi"]
[Result "0-1"]
[ECO "C77"]
[WhiteElo "1005"]
[BlackElo "1194"]
[Annotator "NA RC"]
[PlyCount "116"]
[EventDate "2018.12.30"]
[EventType "swiss"]
[EventCountry "IND"]
[SourceTitle "playchess.com"]
[Source "ChessBase"]
[SourceQuality "1"]
[TimeControl "40/5400+30:1800+30"]

1. e4 e5 2. Nf3 Nc6 3. Bb5 a6 4. Ba4 Nf6 5. Bxc6 dxc6 6. d3 Bd6 7. Nbd2 O-O 8. Nc4 Re8 9. Bd2 Bd7 10. Ne3 Qe7 11. h3 Rab8 12. g4 Be6 13. g5 Nd7 14. h4 Nf8 15. h5 Qd7 16. Nh4 g6 17. h6 Be7 18. Rg1 Qd8 19. Nc4 Bxc4 20. dxc4 Ne6 21. Qg4 Nd4 22. O-O-O Qc8 23. Qxc8 Rbxc8 24. Kb1 Rcd8 25. Rge1 Ne6 26. Be3 Nxg5 27. Bc1 Rxd1 28. Rxd1 Nxe4 29. Nf3 Bd6 30. Be3 f5 31. Ng5 Nxg5 32. Bxg5 Be7 33. Bxe7 Rxe7 34. Rd8+ Kf7 35. Rh8 Kf6 36. Kc1 Kg5 37. Rb8 b6 38. Ra8 a5 39. Kd2 Kxh6 40. Ke3 Kg5 41. Rd8 h5 42. Kf3 h4 43. Rh8 e4+ 44. Kg2 Kg4 45. Rh6 Rg7 46. c3 Kg5 47. Rh8 Rd7 48. b4 Re7 49. c5 axb4 50. cxb4 b5 51. Kh3 e3 52. Kg2 e2 53. f4+ Kg4 54. Rh6 e1=Q 55. Rxg6+ Kh5 56. Rg5+ Kh6 57. Rxf5 Qg3+ 58. Kf1 Re1# 0-1